Workbook

Sheet Disclaimer
D1: Enable macros to use PowerShare Design Tool If you experience a security risk warning, go to the file's properties > general tab > at the bottom security > unblock This tool is designed to help you to understand the power sharing capabilities in PowerShareX amplifiers. With this tool you can choose an amplifier and specify the loudspeakers for the system configuration you want to review. Results are estimated values and may be used as a starting point for your system design. Please also refer to the amplifier technical data sheets when reviewing your system design plan. v1.0.3 add loudspeaker options for DesignMax DML88P and DM12SE, EdgeMax EM180-LP and EM90-LP, Forum FC108 and FC112, ShowTime SK12, 402 Series V, and 802 Series V.

Sheet Tool
K1: =IF(E10<0.999*O43,"I<Imax",IF(E10>1.001*O43,"I>Imax","I@Imax")) -> I>Imax | L1: =IF(L39>0.01,"Pdes<Pmax",IF(L39<-0.01,"Pdes>Pmax","Pdes@Pmax")) -> Pdes<Pmax | M1: =IF(L4="Pavg ok",IF(K4>3,CONCATENATE("The amplifier should only need ",ROUND(K132,1),"A as an average over time. "),""),"") -> The amplifier should only need 0.4A as an average over time. | P1: PS404D | Q1: PS604D | R1: Quattrocanali 8804 | S1: =LEN(S2) -> 19 | V1: T904 | W1: T604 | X1: T304 | Y1: X4 | Z1: X4L
C2: Hi-Z calculator | G2: Lo-Z | K2: Pmains max at | L2: =MAX(K132,AVERAGE(O12/O40/C10,O42/C10)) -> 6.4 Arms | M2: =IF(K1="I<Imax",IF(K3<-0.01,IF(L1="Pdes<Pmax",IF(L4="Pavg<Pdes","The amplifier can deliver the desired average power if the mains current is increased. ",""),""),""),"") ->  | N2: Amplifier data | O2: Selected | S2: PowerShare PSX4804D | T2: PowerShare PSX2404D | U2: PowerShare PSX1204D | AI2: Voltage alternatives
C3: P | D3: 60 W | G3: 100V | H3: =SQRT(2)*100 -> 141.4 | K3: =10*LOG10(L2/O43) -> -0.7 dB | L3: vs Imax | M3: =IF(E10<L2,IF(L1="Pdes>Pmax",IF(K5<-0.01,"It can get closer to the desired average power with a higher mains current availability. ",""),""),"") ->  | N3: Max Ptot, burst | O3: =INDEX(P3:Z3,1,MATCH(C$9,P$2:Z$2,0)) -> 1200 W | P3: 400 W | Q3: 600 W | R3: 9600 W | S3: 6000 W | T3: 2400 W | U3: 1200 W | V3: 8000 W | W3: 6000 W | X3: 3000 W | Y3: 20800 W | Z3: =MIN(IF($C$35:$F$35>8200,25000,32800)) -> 32800 W | AA3: =MIN(IF($C$35:$F$35>150,500,600)) -> 600 W | AI3: 100
C4: Znom 25V | D4: =25^2/D3 -> 10.4 ohm | G4: 70V | H4: 100.0 | K4: =10*LOG10(E10/K132) -> 15.3 dB | L4: =IF(K138<-0.01,"Pavg<Pdes","Pavg ok") -> Pavg ok | M4: =IF(E10>L2*1.01,IF(E10<0.99*O43,IF(L4="Pavg<Pdes",CONCATENATE("The desired total average power exceeds the capacity. It's expected to draw around ",ROUND(L2,1),"A when it reaches its total average power capacity so increasing the available current won't let it reach the desired average power. "),""),""),"") ->  | P4: 100 W | Q4: 150 W | R4: 2400 W | S4: 1200 W | T4: 600 W | U4: 300 W | V4: 2000 W | W4: 1250 W | X4: 750 W | Y4: 5200 W | Z4: 4800 W | AI4: 115
C5: Znom 70V | D5: =100^2/2/D3 -> 83.3 ohm | G5: Unused | H5: =SQRT(2)*25 -> 35.4 | K5: =10*LOG10(E10/L2) -> 3.7 dB | M5: =IF(E10>O43*1.01,CONCATENATE("The amplifier is limited to ",O43,"A. "),"") -> The amplifier is limited to 7.5A. | P5: =P3/8 -> 50 W | Q5: =Q3/8 -> 75 W | R5: =R3/8 -> 1200 W | S5: =S3/8 -> 750 W | T5: =T3/8 -> 300 W | U5: 150 W | V5: 1000 W | W5: 750 W | X5: 375 W | Y5: =Y3/8 -> 2600 W | Z5: =Z3/8 -> 4100 W | AI5: 120
C6: Znom 100V | D6: =100^2/D3 -> 166.7 ohm | G6: Unused | P6: =(P12-P39)*P16 -> 56 W | Q6: 86 W | R6: 816 W | S6: 875 W | T6: 515 W | U6: 424 W | V6: 875 W | W6: 875 W | X6: 424 W | Y6: 1375 W | Z6: 4290 W | AI6: 125
C7: PowerShare Design Tool | N7: Max Ptot, avg | O7: =INDEX(P7:Z7,1,MATCH(C$9,P$2:Z$2,0)) -> 360 W | P7: =MIN(P6,ROUND(AVERAGE(P6,P6,P6,P5),-1)) -> 50 W | Q7: =MIN(Q6,ROUND(AVERAGE(Q6,Q6,Q6,Q5),-1)) -> 80 W | R7: =MIN(R6,ROUND(AVERAGE(R6,R6,R6,R5),-1)) -> 816 W | S7: =MIN(S6,ROUND(AVERAGE(S6,S6,S6,S5),-1)) -> 840 W | T7: =MIN(T6,ROUND(AVERAGE(T6,T6,T6,T5),-1)) -> 460 W | U7: 360 W | V7: 875 W | W7: 840 W | X7: 410 W | Y7: =(Y12-Y39)*Y31 -> 1344 W | Z7: =(Z12-Z39)*Z31 -> 4193 W | AI7: 173
B8: User Input | M8: Instructions | N8: Max Pburst/ch | O8: =INDEX(P8:Z8,1,MATCH(C$9,P$2:Z$2,0)) -> 1100 W | P8: 320 W | Q8: 600 W | R8: 3500 W | S8: 2200 W | T8: 1200 W | U8: 1100 W | V8: 2300 W | W8: 2100 W | X8: 1200 W | Y8: 5400 W | Z8: 10000 W | AF8: Nominal | AG8: 400 W | AI8: 208
B9: Amplifier model | C9: PowerShare PSX1204D | M9: Enable macros to use PowerShare Design Tool! | N9: Lo-Z voltage | O9: =INDEX(P9:Z9,1,MATCH(C$9,P$2:Z$2,0)) -> 70 Vpk | P9: 142.0 Vpk | Q9: 142.0 Vpk | R9: 160.0 Vpk | S9: 139.0 Vpk | T9: 100.0 Vpk | U9: 70.0 Vpk | V9: 170.0 Vpk | W9: 145.0 Vpk | X9: 140.0 Vpk | Y9: 161 Vpk | Z9: 283.0 Vpk | AF9: Actual | AG9: 162 W | AI9: 220
B10: Mains | C10: 115 V | D10: 15 A | E10: =$D$10 -> 15 A | N10: Max Apeak/ch | O10: =INDEX(P10:Z10,1,MATCH(C$9,P$2:Z$2,0)) -> 43 Apk | P10: 18 Apk | Q10: 18 Apk | R10: 50 Apk | S10: 45 Apk | T10: 43 Apk | U10: 43 Apk | V10: 50 Apk | W10: 40 Apk | X10: 40 Apk | Y10: 86 Apk | Z10: 118 Apk | AF10: Unused | AG10: =AG8-AG9 -> 238 W | AI10: 230
C11: Channel | M11: Gray cells = user adjustment | N11: Max Vpeak/ch | O11: 145 Vpk | P11: 142 Vpk | Q11: 142 Vpk | R11: 160 Vpk | S11: 139 Vpk | T11: 145 Vpk | U11: 145 Vpk | V11: 169 Vpk | W11: 145 Vpk | X11: 145 Vpk | Y11: 161 Vpk | Z11: 283 Vpk | AG11: =-10*LOG10(AG9/AG8) -> 3.9 dB | AI11: 240
B12: Loudspeaker Information | C12: 1 | D12: 2 | E12: 3 | F12: 4 | G12: 5 | H12: 6 | I12: 7 | J12: 8 | N12: P act mains slow | O12: 550 W | P12: 90 W | Q12: 128 W | R12: 1200 W | S12: 1100 W | T12: 660 W | U12: 550 W | V12: 1200 W | W12: 1100 W | X12: 550 W | Y12: =IF($C10*$E10>5000,5000,($C10*$E10)) -> 1725 W | Z12: 5000 W
B13: Bose Professional Loudspeaker | C13: FS2 | D13: FS2 | E13: FS2 | F13: FS2 | M13: Select loudspeaker.
B14: Loudspeaker type | C14: Lo-Z | D14: Lo-Z | E14: Lo-Z | F14: Lo-Z | G14: Unused | H14: Unused | I14: Unused | J14: Unused | M14: Select: Lo-Z / 100V / 70V / Unused. Unused must be selected when appropriate for headroom to be accurate.
B15: Loudspeaker type OLD HIDDEN | C15: Lo-Z | D15: Lo-Z | E15: Lo-Z | F15: Lo-Z
B16: #Speakers in parallel | C16: 1 | D16: 1 | E16: 1 | F16: 1 | G16: 1 | H16: 1 | I16: 1 | J16: 1 | M16: Enter number of parallel speakers per channel. | N16: n_net_eff1 | O16: =INDEX(P16:Z16,1,MATCH(C$9,P$2:Z$2,0)) -> 82% | P16: 75% | Q16: 79% | R16: 70% | S16: 82% | T16: 82% | U16: 82% | V16: 75% | W16: 82% | X16: 82% | Y16: 89% | Z16: 89%
B17: #Cabinets in parallel OLD HIDDEN | C17: 1 | D17: 1 | E17: 1 | F17: 1
B18: Tap Setting (70/100V) | C18: 16 W | D18: 16 W | E18: 16 W | F18: 16 W | M18: Select. Note that the lowest tap is sometimes not available in 100v, check technical data sheet for details
B19: RMS power - single speaker | C19: =VLOOKUP(C$13,Data!$D$22:$F$71,2,0) -> 16 W | D19: =VLOOKUP(D$13,Data!$D$22:$F$71,2,0) -> 16 W | E19: =VLOOKUP(E$13,Data!$D$22:$F$71,2,0) -> 16 W | F19: =VLOOKUP(F$13,Data!$D$22:$F$71,2,0) -> 16 W
B20: Nominal impedance Lo-Z OLD HIDDEN | C20: =VLOOKUP(C$13,Data!$D$22:$F$71,3,0) -> 16.0 ohm | D20: =VLOOKUP(D$13,Data!$D$22:$F$71,3,0) -> 16.0 ohm | E20: =VLOOKUP(E$13,Data!$D$22:$F$71,3,0) -> 16.0 ohm | F20: =VLOOKUP(F$13,Data!$D$22:$F$71,3,0) -> 16.0 ohm
B21: Highest Tap choice 70V/100V | C21: =IF(VLOOKUP(C$13,Data!$D$22:$L$71,4,0)="","",VLOOKUP(C$13,Data!$D$22:$L$71,4,0)) -> 16 W | D21: =IF(VLOOKUP(D$13,Data!$D$22:$L$71,4,0)="","",VLOOKUP(D$13,Data!$D$22:$L$71,4,0)) -> 16 W | E21: =IF(VLOOKUP(E$13,Data!$D$22:$L$71,4,0)="","",VLOOKUP(E$13,Data!$D$22:$L$71,4,0)) -> 16 W | F21: =IF(VLOOKUP(F$13,Data!$D$22:$L$71,4,0)="","",VLOOKUP(F$13,Data!$D$22:$L$71,4,0)) -> 16 W | AB21: Profile | AC21: Active power | AD21: Crest factor | AE21: Average reduction | AF21: RMS Scaling
B22: Next Tap choice 70V/100V | C22: =IF(VLOOKUP(C$13,Data!$D$22:$L$71,5,0)="","",VLOOKUP(C$13,Data!$D$22:$L$71,5,0)) -> 8 W | D22: =IF(VLOOKUP(D$13,Data!$D$22:$L$71,5,0)="","",VLOOKUP(D$13,Data!$D$22:$L$71,5,0)) -> 8 W | E22: =IF(VLOOKUP(E$13,Data!$D$22:$L$71,5,0)="","",VLOOKUP(E$13,Data!$D$22:$L$71,5,0)) -> 8 W | F22: =IF(VLOOKUP(F$13,Data!$D$22:$L$71,5,0)="","",VLOOKUP(F$13,Data!$D$22:$L$71,5,0)) -> 8 W | AB22: SW | AC22: 14 dB | AD22: 12 dB | AE22: 2.0 dB | AF22: 0.70
B23: Next Tap choice 70V/100V | C23: =IF(VLOOKUP(C$13,Data!$D$22:$L$71,6,0)="","",VLOOKUP(C$13,Data!$D$22:$L$71,6,0)) -> 4 W | D23: =IF(VLOOKUP(D$13,Data!$D$22:$L$71,6,0)="","",VLOOKUP(D$13,Data!$D$22:$L$71,6,0)) -> 4 W | E23: =IF(VLOOKUP(E$13,Data!$D$22:$L$71,6,0)="","",VLOOKUP(E$13,Data!$D$22:$L$71,6,0)) -> 4 W | F23: =IF(VLOOKUP(F$13,Data!$D$22:$L$71,6,0)="","",VLOOKUP(F$13,Data!$D$22:$L$71,6,0)) -> 4 W | AB23: LF | AC23: =AD23+AE23 -> 15 dB | AD23: 14 dB | AE23: 1.4 dB | AF23: 0.65
B24: Next Tap choice 70V/100V | C24: =IF(VLOOKUP(C$13,Data!$D$22:$L$71,7,0)="","",VLOOKUP(C$13,Data!$D$22:$L$71,7,0)) -> 2 W | D24: =IF(VLOOKUP(D$13,Data!$D$22:$L$71,7,0)="","",VLOOKUP(D$13,Data!$D$22:$L$71,7,0)) -> 2 W | E24: =IF(VLOOKUP(E$13,Data!$D$22:$L$71,7,0)="","",VLOOKUP(E$13,Data!$D$22:$L$71,7,0)) -> 2 W | F24: =IF(VLOOKUP(F$13,Data!$D$22:$L$71,7,0)="","",VLOOKUP(F$13,Data!$D$22:$L$71,7,0)) -> 2 W | AB24: MF | AC24: =AD24+AE24 -> 17 dB | AD24: 16 dB | AE24: 1.2 dB | AF24: 0.60
B25: Next Tap choice 70V/100V | C25: =IF(VLOOKUP(C$13,Data!$D$22:$L$71,8,0)="","",VLOOKUP(C$13,Data!$D$22:$L$71,8,0)) -> 1 W | D25: =IF(VLOOKUP(D$13,Data!$D$22:$L$71,8,0)="","",VLOOKUP(D$13,Data!$D$22:$L$71,8,0)) -> 1 W | E25: =IF(VLOOKUP(E$13,Data!$D$22:$L$71,8,0)="","",VLOOKUP(E$13,Data!$D$22:$L$71,8,0)) -> 1 W | F25: =IF(VLOOKUP(F$13,Data!$D$22:$L$71,8,0)="","",VLOOKUP(F$13,Data!$D$22:$L$71,8,0)) -> 1 W | M25: (Lowest tap sometimes not available in 100v, check loudspeaker technical data sheet) | AB25: HF | AC25: =AD25+AE25 -> 20 dB | AD25: 19 dB | AE25: 0.8 dB | AF25: 0.55
B26: Next Tap choice 70V/100V | C26: =IF(VLOOKUP(C$13,Data!$D$22:$L$71,9,0)="","",VLOOKUP(C$13,Data!$D$22:$L$71,9,0)) ->  | D26: =IF(VLOOKUP(D$13,Data!$D$22:$L$71,9,0)="","",VLOOKUP(D$13,Data!$D$22:$L$71,9,0)) ->  | E26: =IF(VLOOKUP(E$13,Data!$D$22:$L$71,9,0)="","",VLOOKUP(E$13,Data!$D$22:$L$71,9,0)) ->  | F26: =IF(VLOOKUP(F$13,Data!$D$22:$L$71,9,0)="","",VLOOKUP(F$13,Data!$D$22:$L$71,9,0)) ->  | AB26: FR | AC26: =AD26+AE26 -> 17 dB | AD26: =10*LOG10(40) -> 16 dB | AE26: 0.8 dB | AF26: 0.60
B27: Profile HIDDEN | C27: =VLOOKUP(C$13,Data!$D$22:$M$71,10,0) -> FR | D27: =VLOOKUP(D$13,Data!$D$22:$M$71,10,0) -> FR | E27: =VLOOKUP(E$13,Data!$D$22:$M$71,10,0) -> FR | F27: =VLOOKUP(F$13,Data!$D$22:$M$71,10,0) -> FR
B28: Z nominal (LO-Z) | C28: =C20 -> 16.0 ohm | D28: =D20 -> 16.0 ohm | E28: =E20 -> 16.0 ohm | F28: =F20 -> 16.0 ohm | G28: 4.0 ohm | H28: 4.0 ohm | I28: 4.0 ohm | J28: 4.0 ohm | M28: Nominal impedance (when used in LO-Z) | O28: =INDEX(P28:Z28,1,MATCH(C$9,P$2:Z$2,0)) -> 990 W | P28: =0.9*P8 -> 288 W | Q28: 540 W | R28: 3150 W | S28: 1980 W | T28: 1080 W | U28: 990 W | V28: 2070 W | W28: 1890 W | X28: 1080 W | Y28: 5400 W | Z28: 10000 W
B29: PRMS (or Hi-Z tap setting) | C29: =IF(C14="Lo-Z",C19,IF(C14="70V",C18,IF(C14="100V",C18,""))) -> 16 W | D29: =IF(D14="Lo-Z",D19,IF(D14="70V",D18,IF(D14="100V",D18,""))) -> 16 W | E29: =IF(E14="Lo-Z",E19,IF(E14="70V",E18,IF(E14="100V",E18,""))) -> 16 W | F29: =IF(F14="Lo-Z",F19,IF(F14="70V",F18,IF(F14="100V",F18,""))) -> 16 W | G29: 100 W | H29: 100 W | I29: 100 W | J29: 100 W | M29: Bose Professional Power Handling, Long-term Continuous for one cabinet or the tap value of a Hi-Z loudspeaker | N29: P ch slow | O29: 300 W | P29: 36 W | Q29: 68 W | R29: 550 W | S29: 550 W | T29: 300 W | U29: 300 W | V29: 550 W | W29: 550 W | X29: 300 W | Y29: =Y28/4 -> 1350 W | Z29: =Z28/4 -> 2500 W
B30: Profile HIDDEN | C30: =C27 -> FR | D30: =D27 -> FR | E30: =E27 -> FR | F30: =F27 -> FR | G30: SW | H30: SW | I30: SW | J30: SW | M30: Select: SW / LF / MF / HF / FR | N30: Vpk1 | O30: =INDEX(P30:Z30,1,MATCH(C$9,P$2:Z$2,0)) -> 145 Vpk | P30: 73 Vpk | Q30: 98 Vpk | R30: 163 Vpk | S30: 145 Vpk | T30: 145 Vpk | U30: 145 Vpk | V30: 167 Vpk | W30: 145 Vpk | X30: 140 Vpk | Y30: 161 Vpk | Z30: 283 Vpk
B31: Average active power HIDDEN | C31: =INDEX($AC$22:$AC$30,MATCH(C$30,$AB$22:$AB$30,0),1) -> 16.8 dB | D31: 16.8 dB | E31: 16.8 dB | F31: 16.8 dB | G31: 14.0 dB | H31: 14.0 dB | I31: 14.0 dB | J31: 14.0 dB | M31: READ ONLY! Combination of Crest factor and the fact that the speaker isn't a resistive load | N31: n_net_eff2 | O31: 49% | P31: 63% | Q31: 66% | R31: 62% | S31: 49% | T31: 49% | U31: 49% | V31: 63% | W31: 49% | X31: 49% | Y31: 87% | Z31: 87% | AC31: Peak Limiter | AE31: RMS Limiter
B32: User Output Offset | C32: 0 dB | D32: 0 dB | E32: 0 dB | F32: 0 dB | G32: 100 dB | H32: 0 dB | I32: 0 dB | J32: 0 dB | N32: Vpk2 | O32: 2 Vpk | P32: 39.0 Vpk | Q32: 28.5 Vpk | R32: 78.0 Vpk | S32: 60.0 Vpk | T32: 400.0 Vpk | U32: 10.0 Vpk | V32: 78.0 Vpk | W32: 60.0 Vpk | X32: 60.0 Vpk | Y32: 56 Vpk | Z32: 173 Vpk | AB32: Profile | AC32: Attack | AD32: Release | AE32: Attack | AF32: Release
B33: Amplifier Output | C33: Channel | K33: Total | L33: Headroom | N33: k | O33: 0.002444444444 | P33: =(P16-P31)/(P30-P32) -> 0.003529411765 | Q33: 0.001870503597 | R33: 0.0009411764706 | S33: 0.003882352941 | T33: -0.001294117647 | U33: 0.002444444444 | V33: 0.001348314607 | W33: 0.003882352941 | X33: 0.004125 | Y33: 0.0001904761905 | Z33: 0.0001818181818 | AB33: SW | AC33: 16 - 32 ms | AD33: 128 - 384 ms | AE33: 2 - 4 sec | AF33: 4- 8 sec
C34: =C12 -> 1 | D34: 2 | E34: 3 | F34: 4 | G34: 5 | H34: 6 | I34: 7 | J34: 8 | N34: m | O34: 46.6% | P34: =P16-P30*P33 -> 49.2% | Q34: 60.7% | R34: 54.7% | S34: 25.7% | T34: 100.8% | U34: 46.6% | V34: 52.5% | W34: 25.7% | X34: 24.3% | Y34: 85.9% | Z34: 83.9% | AB34: LF | AC34: 8 - 16 ms | AD34: 64 - 256 ms | AE34: 1 - 2 sec | AF34: 2 - 4 sec
B35: Power Requested | C35: =IF(C14=$G6,0.0000001,C29*IF(C14=$G2,2,1)*C16*10^(C32/10)) -> 32 W | D35: 32 W | E35: 32 W | F35: 32 W | G35: 0 W | H35: 0 W | I35: 0 W | J35: 0 W | K35: =SUM(C35:J35) -> 128 W | L35: =10*LOG10(O$3/K35) -> 9.7 dB | M35: Lo-Z speaker = PRMS x 2, Hi-Z speaker = rated power | AB35: MF | AC35: 2 - 8 ms | AD35: 16 - 64 ms | AE35: 0,3 - 0,8 sec | AF35: 0,5 - 2 sec
B36: Asymetrical Rated Power Remaining [Single Channel Consideration] | C36: =_xlfn.IFS($C$9="PowerShare PSX1204D",$U$8-C35,$C$9="PowerShare PSX2404D",$T$8-C35,$C$9="PowerShare PSX4804D",$S$8-C35,TRUE,$U$8-C35) -> 1068 W | D36: =_xlfn.IFS($C$9="PowerShare PSX1204D",$U$8-D35,$C$9="PowerShare PSX2404D",$T$8-D35,$C$9="PowerShare PSX4804D",$S$8-D35,TRUE,$U$8-D35) -> 1068 W | E36: =_xlfn.IFS($C$9="PowerShare PSX1204D",$U$8-E35,$C$9="PowerShare PSX2404D",$T$8-E35,$C$9="PowerShare PSX4804D",$S$8-E35,TRUE,$U$8-E35) -> 1068 W | F36: =_xlfn.IFS($C$9="PowerShare PSX1204D",$U$8-F35,$C$9="PowerShare PSX2404D",$T$8-F35,$C$9="PowerShare PSX4804D",$S$8-F35,TRUE,$U$8-F35) -> 1068 W
B37: Peak Power Requested | C37: =C35*2 -> 64 W | D37: 64 W | E37: 64 W | F37: 64 W
B38: Peak Power Remaining | C38: 2136 W | D38: 2136 W | E38: 2136 W | F38: 2136 W
B39: P average | C39: =C35*2*10^(-C31/10) -> 1 W | D39: 1 W | E39: 1 W | F39: 1 W | G39: 0 W | H39: 0 W | I39: 0 W | J39: 0 W | K39: =SUM(C39:J39) -> 5 W | L39: =IF(K39>0,10*LOG10(O$7/K39),100) -> 18.3 dB | M39: =IF(L39<-0.01,CONCATENATE("The sustainable total average power is limited to ",O7," W"),"") ->  | N39: Pidle | O39: =INDEX(P39:Z39,1,MATCH(C$9,P$2:Z$2,0)) -> 32 W | P39: 15.5 W | Q39: 19.5 W | R39: 34.0 W | S39: 32.4 W | T39: 32.4 W | U39: 32.4 W | V39: 34.0 W | W39: 32.4 W | X39: 32.4 W | Y39: 180 W | Z39: 180 W | AB39: HF | AC39: 0,5 - 2 ms | AD39: 8 - 32 ms | AE39: 0,15 - 0,3 sec | AF39: 0,3 - 0,8 sec
B40: Peak voltage | C40: =SQRT(C35*2*C42) -> 32 Vpk | D40: =SQRT(D35*2*D42) -> 32 Vpk | E40: 32 Vpk | F40: 32 Vpk | G40: 0 Vpk | H40: 0 Vpk | I40: 0 Vpk | J40: 0 Vpk | K40: =MAX(C40:J40) -> 32 Vpk | N40: PF | O40: =INDEX(P40:Z40,1,MATCH(C$9,P$2:Z$2,0)) -> 0.82 | P40: 0.91 | Q40: 0.91 | R40: 0.9 | S40: 0.82 | T40: 0.82 | U40: 0.82 | V40: 0.9 | W40: 0.82 | X40: 0.82 | Y40: =2075/(115*32) -> 0.56 | Z40: 0.56 | AB40: FR | AC40: 2 - 8 ms | AD40: 16 - 64 ms | AE40: 0,3 - 0,8 sec | AF40: 0,5 - 2 sec
B41: Peak current | C41: =SQRT(C35*2/C43) -> 2 Apk | D41: 2 Apk | E41: 2 Apk | F41: 2 Apk | G41: =SQRT(G35*2/G43) -> 0 Apk | H41: =SQRT(H35*2/H43) -> 0 Apk | I41: 0 Apk | J41: 0 Apk
B42: Z | C42: =IF(IF(C14=$G2,C28/C16,IF(C14=$G6,10000,INDEX($H2:$H6,MATCH(C14,$G2:$G6,0),1)^2/2/C35))>=2,IF(C14=$G2,C28/C16,IF(C14=$G6,10000,INDEX($H2:$H6,MATCH(C14,$G2:$G6,0),1)^2/2/C35)),NA()) -> 16.0 ohm | D42: 16.0 ohm | E42: 16.0 ohm | F42: 16.0 ohm | G42: 10000.0 ohm | H42: 10000.0 ohm | I42: 10000.0 ohm | J42: 10000.0 ohm | M42: Overall impedance | N42: P app. mains max | O42: =INDEX(P42:Z42,1,MATCH(C$9,P$2:Z$2,0)) -> 805 VA | P42: =P12/P40*1.2 -> 119 VA | Q42: 169 VA | R42: 1600 VA | S42: 1610 VA | T42: 966 VA | U42: 805 VA | V42: 1600 VA | W42: 1610 VA | X42: 805 VA | Y42: 3671 VA | Z42: 10714 VA
B43: Z min | C43: =IF(RIGHT(C14,1)="V",C42*0.85+0.4,C42*0.75+0.2) -> 12.2 ohm | D43: 12.2 ohm | E43: 12.2 ohm | F43: 12.2 ohm | G43: 7500.2 ohm | H43: 7500.2 ohm | I43: 7500.2 ohm | J43: 7500.2 ohm | M43: This is an assumption to try to ensure that there is output current headroom in the impedance dips. | O43: =INDEX(P43:Z43,1,MATCH(C$9,P$2:Z$2,0)) -> 8 Arms | P43: 5 Arms | Q43: 5 Arms | R43: 15 Arms | S43: 15 Arms | T43: 7.5 Arms | U43: 7.5 Arms | V43: 15.0 Arms | W43: 15 Arms | X43: 7.5 Arms | Y43: 32 Arms | Z43: 32.0 Arms
B45: Headroom | C45: =MIN(20*LOG10(1/MAX(C$41/$O$11,C$40/$O$10)),10*LOG10($O$8/C$35)) -> 2.6 dB | D45: 2.6 dB | E45: 2.6 dB | F45: 2.6 dB | G45: 59.7 dB | H45: 59.7 dB | I45: 59.7 dB | J45: 59.7 dB | N45: Max Pch 70V | O45: =INDEX(P45:Y45,1,MATCH(C$9,P$2:Y$2,0)) -> 1100 W | P45: 320 W | Q45: 600 W | R45: 2100 W | S45: 2100 W | T45: 1500 W | U45: 1100 W | V45: 2000 W | W45: 4200 W | X45: 2400 W | Y45: 10000 W
B46: Round 1 - Ptot burst limited (hidden from user) | N46: Max Pch 100V | O46: =INDEX(P46:Y46,1,MATCH(C$9,P$2:Y$2,0)) -> 1100 W | P46: 320 W | Q46: 500 W | R46: 3000 W | S46: 2200 W | T46: 1700 W | U46: 1100 W | V46: 2300 W | W46: 4200 W | X46: 2400 W | Y46: 10000 W
B47: Pburst channel limitation 1 | C47: =MIN(C35,$O$8) -> 32 W | D47: 32 W | E47: 32 W | F47: 32 W | G47: 0 W | H47: 0 W | I47: 0 W | J47: 0 W
B48: Pburst ch limit incl Umax | C48: =MIN(C47,$O11^2/2/C42) -> 32 W | D48: 32 W | E48: 32 W | F48: 32 W | G48: 0 W | H48: 0 W | I48: 0 W | J48: 0 W
B49: Pburst ch limit incl Imax | C49: =MIN(($O10^2*C43)/2,C48) -> 32 W | D49: =MIN(($O10^2*D43)/2,D48) -> 32 W | E49: =MIN(($O10^2*E43)/2,E48) -> 32 W | F49: =MIN(($O10^2*F43)/2,F48) -> 32 W | G49: =MIN(($O10*G43)^2/2/G42,G48) -> 0 W | H49: =MIN(($O10*H43)^2/2/H42,H48) -> 0 W | I49: =MIN(($O10*I43)^2/2/I42,I48) -> 0 W | J49: =MIN(($O10*J43)^2/2/J42,J48) -> 0 W
B50: P burst | C50: =IF(C35*10^($L35/10)>$O8,$O8,C35*10^($L35/10)) -> 300 W | D50: 300 W | E50: 300 W | F50: 300 W | G50: 0 W | H50: 0 W | I50: 0 W | J50: 0 W | K50: =SUM(C50:J50) -> 1200 W
B51: Peak voltage | C51: =SQRT(C50*C$42*2) -> 98 Vpk | D51: =SQRT(D50*D$42*2) -> 98 Vpk | E51: 98 Vpk | F51: 98 Vpk | G51: 0 Vpk | H51: 0 Vpk | I51: 0 Vpk | J51: 0 Vpk
B52: Peak current | C52: =(C51/C$43) -> 8 Apk | D52: 8 Apk | E52: 8 Apk | F52: 8 Apk | G52: 0 Apk | H52: 0 Apk | I52: 0 Apk | J52: 0 Apk
B53: Headroom | C53: =MIN(20*LOG10(1/MAX(C$51/$O$11,C$52/$O$10)),10*LOG10($O$8/C$50)) -> 3.4 dB | D53: =MIN(20*LOG10(1/MAX(D$51/$O$11,D$52/$O$10)),10*LOG10($O$8/D$50)) -> 3.4 dB | E53: =20*LOG10(1/MAX(E51/$O11,E52/$O10)) -> 3.4 dB | F53: 3.4 dB | G53: 60.5 dB | H53: 60.5 dB | I53: 60.5 dB | J53: 60.5 dB
B54: Round 2 - Per channel limitation (hidden from user)
B55: Factor 2 | C55: =SQRT(C56/C50) -> 0.33 | D55: 0.33 | E55: 0.33 | F55: 0.33 | G55: 0.33 | H55: 0.33 | I55: 0.33 | J55: 0.33 | N55: P of channels that can be increased
B56: P burst | C56: =MIN(C50,C49) -> 32 W | D56: 32 W | E56: 32 W | F56: 32 W | G56: 0 W | H56: 0 W | I56: 0 W | J56: 0 W | K56: =SUM(C56:J56) -> 128 W | L56: =10*LOG10(O$3/K56) -> 9.7 dB | N56: =IF(C$55<1,0,C56)+IF(D$55<1,0,D56)+IF(E$55<1,0,E56)+IF(J$55<1,0,J56) -> 0 W
B57: Peak voltage | C57: =C51*C$55 -> 32 Vpk | D57: 32 Vpk | E57: 32 Vpk | F57: 32 Vpk | G57: 0 Vpk | H57: 0 Vpk | I57: 0 Vpk | J57: 0 Vpk | L57: =K50-K56 -> 1072 W | N57: =IF(C$55<1,0,C35)+IF(D$55<1,0,D35)+IF(E$55<1,0,E35)+IF(J$55<1,0,J35) -> 0 W
B58: Peak current | C58: 3 Apk | D58: 3 Apk | E58: 3 Apk | F58: 3 Apk | G58: 0 Apk | H58: 0 Apk | I58: 0 Apk | J58: 0 Apk | L58: =IF(N56>0,SQRT((MIN(L57,N58)+N56)/N56),1) -> 1.00 | N58: =N57-N56 -> 0 W
B59: Round 3 - Increase the previously decreased channels (hidden from user)
B60: Factor 3 | C60: =SQRT(C61/C56) -> 1.00 | D60: 1.00 | E60: 1.00 | F60: 1.00 | G60: 1.00 | H60: 1.00 | I60: 1.00 | J60: 1.00
B61: P burst | C61: =IF(C56<0,C56,MIN($L58^2*C56,C49)) -> 32 W | D61: =IF(D56<0,D56,MIN($L58^2*D56,D49)) -> 32 W | E61: 32 W | F61: 32 W | G61: 0 W | H61: 0 W | I61: 0 W | J61: 0 W | K61: =SUM(C61:J61) -> 128 W | L61: =10*LOG10(O$3/K61) -> 9.7 dB | N61: =IF(C$64>0,C61,0)+IF(D$64>0,D61,0)+IF(E$64>0,E61,0)+IF(J$64>0,J61,0) -> 96 W | O61: =O3-K61 -> 1072 W
B62: Peak voltage | C62: =SQRT(C61*C$42*2) -> 32 Vpk | D62: =SQRT(D61*D$42*2) -> 32 Vpk | E62: 32 Vpk | F62: 32 Vpk | G62: 0 Vpk | H62: 0 Vpk | I62: 0 Vpk | J62: 0 Vpk | N62: =IF(C65>0,C62,0)+IF(D65>0,D62,0)+IF(E65>0,E62,0)+IF(J65>0,J62,0) -> 0 W
B63: Peak current | C63: =C62/C$43 -> 3 Apk | D63: 3 Apk | E63: 3 Apk | F63: 3 Apk | G63: 0 Apk | H63: 0 Apk | I63: 0 Apk | J63: 0 Apk | L63: =IF(N62>0,SQRT((N61+O61)/N61),1) -> 1.00
B64: Headroom | C64: =MIN(20*LOG10(1/MAX(C62/$O$11,C63/$O$10)),10*LOG10($O$8/C61)) -> 13.1 dB | D64: 13.1 dB | E64: 13.1 dB | F64: 13.1 dB | G64: 70.2 dB | H64: 70.2 dB | I64: 70.2 dB | J64: 70.2 dB | N64: Max Ptot 70V | O64: =INDEX(P64:Y64,1,MATCH(C$9,P$2:Y$2,0)) -> 1200 W | P64: 320 W | Q64: 600 W | R64: 8000 W | S64: 4800 W | T64: 2400 W | U64: 1200 W | V64: 8000 W | W64: 4200 W | X64: 2400 W | Y64: 10000 W
B65: Round 4 - Increase the previously decreased channels (hidden from user) | N65: Max Ptot 100V | O65: =INDEX(P65:Y65,1,MATCH(C$9,P$2:Y$2,0)) -> 1200 W | P65: 320 W | Q65: 500 W | R65: 8000 W | S65: 4800 W | T65: 2400 W | U65: 1200 W | V65: 8000 W | W65: 4200 W | X65: 2400 W | Y65: 10000 W
B66: Factor 4 | C66: =IF(C64<0,10^(C64/20),IF(C64>0,$L63,1)) -> 1.00 | D66: 1.00 | E66: 1.00 | F66: 1.00 | G66: 1.00 | H66: 1.00 | I66: 1.00 | J66: 1.00
B67: Round 5
B69: Headroom 70V | C69: =IF(C$14="70V",10*LOG10($O$45/C$35),"") ->  | D69: =IF(D$14="70V",10*LOG10($O$45/D$35),"") ->  | E69: =IF(E$14="70V",10*LOG10($O$45/E$35),"") ->  | F69: =IF(F$14="70V",10*LOG10($O$45/F$35),"") ->  | K69: =IF(AND(C$14:F$14="70V"),10*LOG10($O$64/K$35),$L$35) -> 9.7 dB
B70: Headroom 100V | C70: =IF(C$14="100V",10*LOG10($O$46/C$35),"") ->  | D70: =IF(D$14="100V",10*LOG10($O$46/D$35),"") ->  | E70: =IF(E$14="100V",10*LOG10($O$46/E$35),"") ->  | F70: =IF(F$14="100V",10*LOG10($O$46/F$35),"") ->  | K70: =IF(AND(C$14:F$14="100V"),10*LOG10($O$65/K$35),$L$35) -> 9.7 dB
B96: P average with maintained CF | C96: =10^(C137/10)*C39 -> 1 W | D96: 1 W | E96: 1 W | F96: 1 W | G96: 0 W | H96: 0 W | I96: 0 W | J96: 0 W | K96: =SUM(C96:J96) -> 5 W
B97: P average with equal reduction | C97: =10^($L39/10)*C39 -> 90 W | D97: 90 W | E97: 90 W | F97: 90 W | G97: 0 W | H97: 0 W | I97: 0 W | J97: 0 W | K97: =SUM(C97:J97) -> 360 W
B98: P average compromise | C98: =AVERAGE(C96,C97) -> 46 W | D98: 46 W | E98: 46 W | F98: 46 W | G98: 0 W | H98: 0 W | I98: 0 W | J98: 0 W | K98: =SUM(C98:J98) -> 183 W | L98: =10*LOG10(O$7/K98) -> 2.9 dB
B99: P average compromise | C99: =MIN(10^($L98/10)*C98,C39) -> 1 W | D99: 1 W | E99: 1 W | F99: 1 W | G99: 0 W | H99: 0 W | I99: 0 W | J99: 0 W | K99: =SUM(C99:J99) -> 5 W | N99: =IF(C$100<1,0,C99)+IF(D$100<1,0,D99)+IF(E$100<1,0,E99)+IF(J$100<1,0,J99) -> 4 W
B100: Factor | C100: =C99/C39 -> 1.00 | D100: 1.00 | E100: 1.00 | F100: 1.00 | G100: 1.00 | H100: 1.00 | I100: 1.00 | J100: 1.00 | L100: =IF(N100>0,(N100+O100)/N100,1) -> 1.00 | N100: =K99-N99 -> 1 W | O100: =MIN(K39,O7)-K99 -> 0 W
N101: Pidle/ch | O101: =O39/O102 -> 8 W
B102: Possible power from the amplifier | C102: Channel | K102: Total | L102: Headroom | N102: #channels | O102: =INDEX(P102:Z102,1,MATCH(C$9,P$2:Z$2,0)) -> 4 | P102: 4 | Q102: 4 | R102: 4 | S102: 4 | T102: 4 | U102: 4 | V102: 4 | W102: 4 | X102: 4 | Y102: 4 | Z102: 4
B103: P burst | C103: =MIN(C61*C$66^2,C49) -> 32 W | D103: =MIN(D61*D$66^2,D49) -> 32 W | E103: 32 W | F103: 32 W | G103: 0 W | H103: 0 W | I103: 0 W | J103: 0 W | K103: =SUM(C103:J103) -> 128 W | L103: =10*LOG10(O$3/K103) -> 9.7 dB | N103: =IF(C$66<1,0,C103)+IF(D$66<1,0,D103)+IF(E$66<1,0,E103)+IF(J$66<1,0,J103) -> 96 W
B104: P average | C104: =MIN(C39,IF(C100<1,$L100,1)*C99) -> 1 W | D104: 1 W | E104: 1 W | F104: 1 W | G104: 0 W | H104: 0 W | I104: 0 W | J104: 0 W | K104: =SUM(C104:J104) -> 5 W | L104: =10*LOG10(O$7/K104) -> 18.3 dB
B105: RMS voltage without use mains current limit | C105: =SQRT(C104*C$42)*10^(C$110/20) -> 5 W | D105: 5 W | E105: 5 W | F105: 5 W | G105: 0 W | H105: 0 W | I105: 0 W | J105: 0 W
B106: P average with mains current limit | C106: =C39*10^(C138/10) -> 1.3 W | D106: 1.3 W | E106: 1.3 W | F106: 1.3 W | G106: 0.0 W | H106: 0.0 W | I106: 0.0 W | J106: 0.0 W | K106: =SUM(C106:J106) -> 5 W | L106: =10*LOG10(K106/K39) -> 0.0 dB
B107: Peak voltage | C107: =C62*C$66 -> 32 Vpk | D107: =D62*D$66 -> 32 Vpk | E107: 32 Vpk | F107: 32 Vpk | G107: 0 Vpk | H107: 0 Vpk | I107: 0 Vpk | J107: 0 Vpk | K107: =MAX(C107:J107) -> 32.0 Vpk | L107: =K61-K103 -> 0 W | N107: =IF(C$66<1,0,C35)+IF(D$66<1,0,D35)+IF(E$66<1,0,E35)+IF(J$66<1,0,J35) -> 96 W
B108: RMS voltage | C108: =SQRT(C106*C$42)*10^(C$110/20) -> 5 Vpk | D108: 5 Vpk | E108: 5 Vpk | F108: 5 Vpk | G108: 0 Vpk | H108: 0 Vpk | I108: 0 Vpk | J108: 0 Vpk | L108: =SQRT(E133*2*E40) -> 25.98136412
B109: Desired crest factor | C109: =-INDEX($AD$22:$AD$27,MATCH(C$30,$AB$22:$AB$27,0),1) -> -16.0 dB | D109: -16.0 dB | E109: -16.0 dB | F109: -16.0 dB | G109: -12.0 dB | H109: -12.0 dB | I109: -12.0 dB | J109: -12.0 dB | L109: =SQRT(E134*2*E42) -> 32
B110: Difference between average power and average voltage | C110: =C31+C109 -> 0.8 dB | D110: =D31+D109 -> 0.8 dB | E110: 0.8 dB | F110: 0.8 dB | G110: 2.0 dB | H110: 2.0 dB | I110: 2.0 dB | J110: 2.0 dB
B111: Peak current | C111: =C63*C$66 -> 3 Apk | D111: 3 Apk | E111: 3 Apk | F111: 3 Apk | G111: 0 Apk | H111: 0 Apk | I111: 0 Apk | J111: 0 Apk | L111: =(MIN(L107,N111)+N103)/N103 -> 1.00 | N111: =N107-N103 -> 0 W | AQ111: =C111+D111+E111+F111 -> 10 Apk
B112: =IF(LEN($C9)>9,"Set dipswitch to","") -> Set dipswitch to | C112: =IF(LEN($B112)<1,"",IF(DipSwitchOverride($C$9,C$13)="",IF(C14=$G2,IF(C107<=$O9,"Lo-Z",IF(C107>100,$G3,$G4)),C14),DipSwitchOverride($C$9,C$13))) -> Lo-Z | D112: =IF(LEN($B112)<1,"",IF(DipSwitchOverride($C$9,D$13)="",IF(D14=$G2,IF(D107<=$O9,"Lo-Z",IF(D107>100,$G3,$G4)),D14),DipSwitchOverride($C$9,D$13))) -> Lo-Z | E112: =IF(LEN($B112)<1,"",IF(DipSwitchOverride($C$9,E$13)="",IF(E14=$G2,IF(E107<=$O9,"Lo-Z",IF(E107>100,$G3,$G4)),E14),DipSwitchOverride($C$9,E$13))) -> Lo-Z | F112: =IF(LEN($B112)<1,"",IF(DipSwitchOverride($C$9,F$13)="",IF(F14=$G2,IF(F107<=$O9,"Lo-Z",IF(F107>100,$G3,$G4)),F14),DipSwitchOverride($C$9,F$13))) -> Lo-Z | G112: =IF(LEN($B112)<1,"",IF(G14=$G2,IF(G107<$O9,"Lo-Z",IF(G107>100,$G3,$G4)),G14)) -> Unused | H112: =IF(LEN($B112)<1,"",IF(H14=$G2,IF(H107<$O9,"Lo-Z",IF(H107>100,$G3,$G4)),H14)) -> Unused | I112: =IF(LEN($B112)<1,"",IF(I14=$G2,IF(I107<$O9,"Lo-Z",IF(I107>100,$G3,$G4)),I14)) -> Unused | J112: =IF(LEN($B112)<1,"",IF(J14=$G2,IF(J107<$O9,"Lo-Z",IF(J107>100,$G3,$G4)),J14)) -> Unused | M112: Dipswitch setting on rear panel of amplifier. AMM112 FR, LF on PSX1204D, PSX2404D 100V dipswitch reccomended.
B114: X series Channel/Rail Limitation
B115: Peak current requested | C115: =C$41 -> 2 Apk | D115: =D$41 -> 2 Apk | E115: 2 Apk | F115: 2 Apk | G115: 0 Apk | H115: 0 Apk | I115: 0 Apk | J115: 0 Apk
B116: Delta Voltage | C116: =IF($C$9="X4L",C$115*0.25*2,IF($C$9="X4",C$115*0.25,0)) -> 0 V | D116: 0 V | E116: 0 V | F116: 0 V | G116: 0 V | H116: 0 V | I116: 0 V | J116: 0 V
B117: Max Vpk Channel limited | C117: =IF($C$9="X4L",300-C$116,IF($C$9="X4",175-C$116,$O$11)) -> 145 Vpk | D117: 145 Vpk | E117: 145 Vpk | F117: 145 Vpk | G117: 145 Vpk | H117: 145 Vpk | I117: 145 Vpk | J117: 145 Vpk
B118: Headroom | C118: =IF(OR($C9="X4",$C9="X4L",$C9="X8"),10*LOG10(C$117/C$40),35) -> 35.0 dB | D118: 35.0 dB | E118: 35.0 dB | F118: 35.0 dB | G118: 35.0 dB | H118: 35.0 dB | I118: 35.0 dB | J118: 35.0 dB
B120: Possible vs desired (average) | C120: =10*LOG10(C104/C39) -> 0.0 dB | D120: 0.0 dB | E120: 0.0 dB | F120: 0.0 dB | G120: 0.0 dB | H120: 0.0 dB | I120: 0.0 dB | J120: 0.0 dB | L120: =MIN(C120:J120) -> 0.0 dB | N120: 8 ohm P out | Z120: =1600 -> 1600 W
B121: Crest factor possible | C121: =10*LOG10(2*C103/C104) -> 17 dB | D121: 17 dB | E121: 17 dB | F121: 17 dB | G121: 14 dB | H121: 14 dB | I121: 14 dB | J121: 14 dB | N121: 8 ohm BTU | Z121: 2117
B122: Crest factor headroom | C122: =C31-C121 -> 0 dB | D122: 0 dB | E122: 0 dB | F122: 0 dB | G122: 0 dB | H122: 0 dB | I122: 0 dB | J122: 0 dB | N122: 8 ohm P in | Z122: =1/3.412142*Z120+Z120 -> 2069 W
B123: Current draw and thermal dissipation | N123: N eff 8 ohm | Z123: =Z120/(Z122-Z39) -> 0.8470477144
B124: Automatic settings
B125: P ch fast | C125: =MIN(C103*1.4,$O28) -> 45 W | D125: 45 W | E125: 45 W | F125: 45 W | G125: 0 W | H125: 0 W | I125: 0 W | J125: 0 W | K125: =SUM(C125:J125) -> 179 W | L125: =-10*LOG10(K103/K125) -> 1.5 dB | N125: 4 ohm BTU
B126: P ch slow | C126: =MIN(C104*2,$O29) -> 3 W | D126: 3 W | E126: 3 W | F126: 3 W | G126: 0 W | H126: 0 W | I126: 0 W | J126: 0 W | K126: =SUM(C126:J126) -> 11 W
B127: P mains slow | K127: =MIN(K130*1.4,O$12) -> 59 W | N127: =10*LOG10(K104/K126) -> -3.0 dB
B128: Estimated net efficiency | C128: =IF(C$14="Unused",0,C107*$O33+$O34) -> 54.4% | D128: 54.4% | E128: 54.4% | F128: 54.4% | G128: 0.0% | H128: 0.0% | I128: 0.0% | J128: 0.0% | K128: =K104/(K130-O39) -> 54.4%
B129: P mains worst case | C129: =IF(C$14="Unused",0,C126/C$128+$O$101) -> 13 W | D129: 13 W | E129: 13 W | F129: 13 W | G129: 0 W | H129: 0 W | I129: 0 W | J129: 0 W | K129: =SUM(C129:J129) -> 52 W | L129: =10*LOG10(O$12/K129) -> 10.2 dB
B130: P mains estimated | C130: =IF(C$14="Unused",0,C104/C$128+$O$101) -> 11 W | D130: 11 W | E130: 11 W | F130: 11 W | G130: 0 W | H130: 0 W | I130: 0 W | J130: 0 W | K130: =SUM(C130:J130) -> 42 W | L130: =10*LOG10(O$12/K130) -> 11.2 dB
B131: I mains estimated | K131: =K130/O40/C10 -> 0.4 Arms
B132: I mains limited to | K132: =MIN(MIN(O42,K130)/O40/$C10,O43,$E10) -> 0.4 Arms | L132: =-10*LOG10(K132/O43) -> 12.2 dB | N132: 4ohm BTU | Z132: 3892
B133: P mains possible | C133: =((C130-$O101)/($K130-$O39))*($K133-$O39)+$O101 -> 11 W | D133: 11 W | E133: 11 W | F133: 11 W | G133: 0 W | H133: 0 W | I133: 0 W | J133: 0 W | K133: =K132*$C10*O40 -> 42 W | N133: 1/4th power | Z133: =SQRT(Z135/8*8*8*2) -> 226.27417
B134: Pout possible (burst with the same CF) | C134: =C35/C39*C135 -> 32 W | D134: 32 W | E134: 32 W | F134: 32 W | G134: 0 W | H134: 0 W | I134: 0 W | J134: 0 W | K134: =SUM($C134:J134) -> 128 W
B135: P out possible (average) | C135: =(C133-$O101)*C128 -> 1 W | D135: 1 W | E135: 1 W | F135: 1 W | G135: 0 W | H135: 0 W | I135: 0 W | J135: 0 W | K135: =SUM($C135:J135) -> 5 W | N135: Pout 4 ohm | P135: 500 W | Q135: 1000 W | R135: 2400 W | S135: 1500 W | T135: 800 W | U135: 400 W | V135: 2000 W | W135: 1250 W | X135: 750 W | Y135: 3000 W | Z135: =1600/4*8 -> 3200 W
B136: Crest factor extension | C136: =C137-C138 -> 0 dB | D136: =D137-D138 -> 0 dB | E136: 0 dB | F136: 0 dB | G136: 0 dB | H136: 0 dB | I136: 0 dB | J136: 0 dB | K136: =MAX($C136:F136) -> 0 dB
B137: Gain reduction (burst) | C137: =10*LOG10(C103/C35) -> 0.0 dB | D137: =10*LOG10(D103/D35) -> 0.0 dB | E137: 0.0 dB | F137: 0.0 dB | G137: 0.0 dB | H137: 0.0 dB | I137: 0.0 dB | J137: 0.0 dB | K137: =MIN(C137:J137) -> 0.0 dB | N137: 1/8th power, Vpk | Z137: =SQRT(Z120/8*8*8*2) -> 160
B138: Gain reduction (average) | C138: =IF(C$14="Unused",0,10*LOG10(C135/C39)) -> 0.0 dB | D138: 0.0 dB | E138: 0.0 dB | F138: 0.0 dB | G138: 0.0 dB | H138: 0.0 dB | I138: 0.0 dB | J138: 0.0 dB | K138: =10*LOG10(K135/K39) -> -0.0 dB | N138: BTU | R138: 1713 | S138: 760 | T138: 360 | U138: 261 | Z138: 3892
B139: Headroom | C139: =IF(C$14="70V",MIN($K$71,C$71),IF(C$14="100V",MIN($K$70,C$70),IF(C$14="Unused","Unused",IF(C$14="Lo-Z",MIN(20*LOG10(MAX($O9,$O30)/C40),20*LOG10(1/MAX(C$57/$O11,C$58/$O10)),10*LOG10($O8/C$56),$L$35,C$118,IF(C137<-0.01,C137,32),IF(C138<-0.01,C138,32)),MIN(20*LOG10(1/(C$58/$O10)),10*LOG10($O8/C$56),$L$35,IF(C137<-0.01,C137,32),IF(C138<-0.01,C138,32)))))) -> 9.7 dB | D139: =IF(D$14="70V",MIN($K$71,D$71),IF(D$14="100V",MIN($K$70,D$70),IF(D$14="Unused","Unused",IF(D$14="Lo-Z",MIN(20*LOG10(MAX($O9,$O30)/D40),20*LOG10(1/MAX(D$57/$O11,D$58/$O10)),10*LOG10($O8/D$56),$L$35,D$118,IF(D137<-0.01,D137,32),IF(D138<-0.01,D138,32)),MIN(20*LOG10(1/(D$58/$O10)),10*LOG10($O8/D$56),$L$35,IF(D137<-0.01,D137,32),IF(D138<-0.01,D138,32)))))) -> 9.7 dB | E139: =IF(E$14="70V",MIN($K$71,E$71),IF(E$14="100V",MIN($K$70,E$70),IF(E$14="Unused","Unused",IF(E$14="Lo-Z",MIN(20*LOG10(MAX($O9,$O30)/E40),20*LOG10(1/MAX(E$57/$O11,E$58/$O10)),10*LOG10($O8/E$56),$L$35,E$118,IF(E137<-0.01,E137,32),IF(E138<-0.01,E138,32)),MIN(20*LOG10(1/(E$58/$O10)),10*LOG10($O8/E$56),$L$35,IF(E137<-0.01,E137,32),IF(E138<-0.01,E138,32)))))) -> 9.7 dB | F139: =IF(F$14="70V",MIN($K$71,F$71),IF(F$14="100V",MIN($K$70,F$70),IF(F$14="Unused","Unused",IF(F$14="Lo-Z",MIN(20*LOG10(MAX($O9,$O30)/F40),20*LOG10(1/MAX(F$57/$O11,F$58/$O10)),10*LOG10($O8/F$56),$L$35,F$118,IF(F137<-0.01,F137,32),IF(F138<-0.01,F138,32)),MIN(20*LOG10(1/(F$58/$O10)),10*LOG10($O8/F$56),$L$35,IF(F137<-0.01,F137,32),IF(F138<-0.01,F138,32)))))) -> 9.7 dB | G139: =IF(G$14="Unused","Unused",IF(G$14="Lo-Z",MIN(20*LOG10(MAX($O9,$O30)/G40),20*LOG10(1/MAX(G$57/$O11,G$58/$O10)),10*LOG10($O8/G$56),$L$35,G$118,IF(G137<-0.01,G137,32),IF(G138<-0.01,G138,32)),MIN(20*LOG10(1/(G$58/$O10)),10*LOG10($O8/G$56),$L$35,IF(G137<-0.01,G137,32),IF(G138<-0.01,G138,32)))) -> Unused | H139: =IF(H$14="Unused","Unused",IF(H$14="Lo-Z",MIN(20*LOG10(MAX($O9,$O30)/H40),20*LOG10(1/MAX(H$57/$O11,H$58/$O10)),10*LOG10($O8/H$56),$L$35,H$118,IF(H137<-0.01,H137,32),IF(H138<-0.01,H138,32)),MIN(20*LOG10(1/(H$58/$O10)),10*LOG10($O8/H$56),$L$35,IF(H137<-0.01,H137,32),IF(H138<-0.01,H138,32)))) -> Unused | I139: =IF(I$14="Unused","Unused",IF(I$14="Lo-Z",MIN(20*LOG10(MAX($O9,$O30)/I40),20*LOG10(1/MAX(I$57/$O11,I$58/$O10)),10*LOG10($O8/I$56),$L$35,I$118,IF(I137<-0.01,I137,32),IF(I138<-0.01,I138,32)),MIN(20*LOG10(1/(I$58/$O10)),10*LOG10($O8/I$56),$L$35,IF(I137<-0.01,I137,32),IF(I138<-0.01,I138,32)))) -> Unused | J139: =IF(J$14="Unused","Unused",IF(J$14="Lo-Z",MIN(20*LOG10(MAX($O9,$O30)/J40),20*LOG10(1/MAX(J$57/$O11,J$58/$O10)),10*LOG10($O8/J$56),$L$35,J$118,IF(J137<-0.01,J137,32),IF(J138<-0.01,J138,32)),MIN(20*LOG10(1/(J$58/$O10)),10*LOG10($O8/J$56),$L$35,IF(J137<-0.01,J137,32),IF(J138<-0.01,J138,32)))) -> Unused | L139: =MIN(C139:F139,L130,L132,L56,L61) -> 9.7 dB | M139: If this results in +3dB, go down an amp model. If this results in -3dB go up an amp model. | AJ139: =IF(AH137>3,CONCATENATE("The capacity to sustain the crest factor is challenged. While individual beats ",IF(AH138>-0.01,"can ","may "),"reach the desired peak level, there is an obvious risk that the SPL of the beats will vary over time."),"") -> 
B140: P loss | K140: =K133-K135 -> 37 W | N140: P 1/8th in 4 ohm | Q140: 1425 W | S140: 2075 W | Z140: =1/3.412142*Z132+Z135 -> 4341 W
B141: BTU | K141: =3.412*K140 -> 126 BTU/h | N141: N eff 4 ohm | Q141: =Q135/(Q140-Q56) -> 70.2% | R141: =R135/(R140-R56) ->  | S141: 72.3% | Z141: =Z135/(Z140-Z56) -> 0.7372197515
B143: Apparent power | K143: =K132*C10 -> 51 VA
K144: =K133/K143 -> 0.82
B145: PowerSoft Suggested Limiters Treshold
M146: Values that should be used in the limiter settings if creating custom presets
B147: Clip voltage | C147: =IF(C$14="Lo-Z",C$40*1.05,C$40) -> 34 V | D147: =IF(D$14="Lo-Z",D$40*1.05,D$40) -> 34 V | E147: =IF(E$14="Lo-Z",E$40*1.05,E$40) -> 34 V | F147: =IF(F$14="Lo-Z",F$40*1.05,F$40) -> 34 V | G147: =IF($C14="Lo-Z",G$40*1.05,G$40) -> 0 Vpk | H147: =IF($C14="Lo-Z",H$40*1.05,H$40) -> 0 Vpk | I147: =IF($C14="Lo-Z",I$40*1.05,I$40) -> 0 Vpk | J147: =IF($C14="Lo-Z",J$40*1.05,J$40) -> 0 Vpk
B149: Peak voltage | C149: =C$40*0.8 -> 26 V | D149: 26 V | E149: 26 V | F149: 26 V | G149: 0 Vpk | H149: 0 Vpk | I149: 0 Vpk | J149: 0 Vpk | M149: =IF(K180<-0.01,"A peak limiter setting above this level may lead to undesireable artefacts in percussive sounds","") ->  | AF149: =IF(C$66<1,0,C73)+IF(D$66<1,0,D73)+IF(E$66<1,0,E73)+IF(F$66<1,0,F73) -> 0 W
B150: Attack Time Range | C150: =VLOOKUP(C$30,$AB33:$AF40,2,FALSE) -> 2 - 8 ms | D150: =VLOOKUP(D$30,$AB33:$AF40,2,FALSE) -> 2 - 8 ms | E150: =VLOOKUP(E$30,$AB33:$AF40,2,FALSE) -> 2 - 8 ms | F150: =VLOOKUP(F$30,$AB33:$AF40,2,FALSE) -> 2 - 8 ms | G150: =VLOOKUP($C30,$AB33:$AF40,2,FALSE) -> 2 - 8 ms | H150: =VLOOKUP($C30,$AB33:$AF40,2,FALSE) -> 2 - 8 ms | I150: =VLOOKUP($C30,$AB33:$AF40,2,FALSE) -> 2 - 8 ms | J150: =VLOOKUP($C30,$AB33:$AF40,2,FALSE) -> 2 - 8 ms
B151: Release Time Range | C151: =VLOOKUP(C$30,$AB33:$AF40,3,FALSE) -> 16 - 64 ms | D151: =VLOOKUP(D$30,$AB33:$AF40,3,FALSE) -> 16 - 64 ms | E151: =VLOOKUP(E$30,$AB33:$AF40,3,FALSE) -> 16 - 64 ms | F151: =VLOOKUP(F$30,$AB33:$AF40,3,FALSE) -> 16 - 64 ms | G151: =VLOOKUP($C30,$AB33:$AF40,3,FALSE) -> 16 - 64 ms | H151: =VLOOKUP($C30,$AB33:$AF40,3,FALSE) -> 16 - 64 ms | I151: =VLOOKUP($C30,$AB33:$AF40,3,FALSE) -> 16 - 64 ms | J151: =VLOOKUP($C30,$AB33:$AF40,3,FALSE) -> 16 - 64 ms
B153: RMS voltage | C153: =SQRT(C$35/2*C$42)*VLOOKUP(C$30,$AB22:$AF27,5,FALSE) -> 10 V | D153: =SQRT(D$35/2*D$42)*VLOOKUP(D$30,$AB22:$AF27,5,FALSE) -> 10 V | E153: =SQRT(E$35/2*E$42)*VLOOKUP(E$30,$AB22:$AF27,5,FALSE) -> 10 V | F153: =SQRT(F$35/2*F$42)*VLOOKUP(F$30,$AB22:$AF27,5,FALSE) -> 10 V | G153: =SQRT(G$35/2*G$42)*VLOOKUP($C30,$AB22:$AF27,5,FALSE) -> 0 Vpk | H153: =SQRT(H$35/2*H$42)*VLOOKUP($C30,$AB22:$AF27,5,FALSE) -> 0 Vpk | I153: =SQRT(I$35/2*I$42)*VLOOKUP($C30,$AB22:$AF27,5,FALSE) -> 0 Vpk | J153: =SQRT(J$35/2*J$42)*VLOOKUP($C30,$AB22:$AF27,5,FALSE) -> 0 Vpk | M153: =IF(K181<-0.01,"An rms limiter setting above this level may lead to undesireable pumping effects","") -> 
B154: Desired crest factor | C154: =-INDEX($AM$12:$AM$29,MATCH(C$30,$AK$12:$AK$29,0),1) -> 
B155: Difference between average power and average voltage | C155: =C69+C154 ->  | D155: =D69+D154 -> 
B156: Peak current | C156: =C95*C$66 -> 0.0 Apk | D156: 0.0 Apk | E156: 0.0 Apk | F156: 0.0 Apk | G156: 0.0 Apk | H156: 0.0 Apk | I156: 0.0 Apk | J156: 0.0 Apk | L156: =(MIN(M149,AF156)+AF176)/AF176 ->  | AF156: =AF149-AF176 -> 0 W
B157: Attack Time Range | C157: =VLOOKUP(C$30,$AB33:$AF40,4,FALSE) -> 0,3 - 0,8 sec | D157: =VLOOKUP(D$30,$AB33:$AF40,4,FALSE) -> 0,3 - 0,8 sec | E157: =VLOOKUP(E$30,$AB33:$AF40,4,FALSE) -> 0,3 - 0,8 sec | F157: =VLOOKUP(F$30,$AB33:$AF40,4,FALSE) -> 0,3 - 0,8 sec | G157: =VLOOKUP($C30,$AB33:$AF40,4,FALSE) -> 0,3 - 0,8 sec | H157: =VLOOKUP($C30,$AB33:$AF40,4,FALSE) -> 0,3 - 0,8 sec | I157: =VLOOKUP($C30,$AB33:$AF40,4,FALSE) -> 0,3 - 0,8 sec | J157: =VLOOKUP($C30,$AB33:$AF40,4,FALSE) -> 0,3 - 0,8 sec
B158: Release Time Range | C158: =VLOOKUP(C$30,$AB33:$AF40,5,FALSE) -> 0,5 - 2 sec | D158: =VLOOKUP(D$30,$AB33:$AF40,5,FALSE) -> 0,5 - 2 sec | E158: =VLOOKUP(E$30,$AB33:$AF40,5,FALSE) -> 0,5 - 2 sec | F158: =VLOOKUP(F$30,$AB33:$AF40,5,FALSE) -> 0,5 - 2 sec | G158: =VLOOKUP($C30,$AB33:$AF40,5,FALSE) -> 0,5 - 2 sec | H158: =VLOOKUP($C30,$AB33:$AF40,5,FALSE) -> 0,5 - 2 sec | I158: =VLOOKUP($C30,$AB33:$AF40,5,FALSE) -> 0,5 - 2 sec | J158: =VLOOKUP($C30,$AB33:$AF40,5,FALSE) -> 0,5 - 2 sec
B160: Bose EQ preset Treshold
B161: Peak Voltage | C161: =VLOOKUP(C$13,Data!$D$22:$S$71,11,0) -> 32 V | D161: =VLOOKUP(D$13,Data!$D$22:$S$71,11,0) -> 32 V | E161: =VLOOKUP(E$13,Data!$D$22:$S$71,11,0) -> 32 V | F161: =VLOOKUP(F$13,Data!$D$22:$S$71,11,0) -> 32 V
B162: Attack Time Range | C162: =VLOOKUP(C$13,Data!$D$22:$S$71,12,0) -> 1.5 ms | D162: =VLOOKUP(D$13,Data!$D$22:$S$71,12,0) -> 1.5 ms | E162: =VLOOKUP(E$13,Data!$D$22:$S$71,12,0) -> 1.5 ms | F162: =VLOOKUP(F$13,Data!$D$22:$S$71,12,0) -> 1.5 ms
B163: Release Time Range | C163: =VLOOKUP(C$13,Data!$D$22:$S$71,13,0) -> 100 ms | D163: =VLOOKUP(D$13,Data!$D$22:$S$71,13,0) -> 100 ms | E163: =VLOOKUP(E$13,Data!$D$22:$S$71,13,0) -> 100 ms | F163: =VLOOKUP(F$13,Data!$D$22:$S$71,13,0) -> 100 ms
B164: RMS Voltage | C164: =VLOOKUP(C$13,Data!$D$22:$S$71,14,0) -> 16 V | D164: =VLOOKUP(D$13,Data!$D$22:$S$71,14,0) -> 16 V | E164: =VLOOKUP(E$13,Data!$D$22:$S$71,14,0) -> 16 V | F164: =VLOOKUP(F$13,Data!$D$22:$S$71,14,0) -> 16 V
B165: Attack Time Range | C165: =VLOOKUP(C$13,Data!$D$22:$S$71,15,0) -> 1.0 sec | D165: =VLOOKUP(D$13,Data!$D$22:$S$71,15,0) -> 1.0 sec | E165: =VLOOKUP(E$13,Data!$D$22:$S$71,15,0) -> 1.0 sec | F165: =VLOOKUP(F$13,Data!$D$22:$S$71,15,0) -> 1.0 sec
B166: Release Time Range | C166: =VLOOKUP(C$13,Data!$D$22:$S$71,16,0) -> 2.0 sec | D166: =VLOOKUP(D$13,Data!$D$22:$S$71,16,0) -> 2.0 sec | E166: =VLOOKUP(E$13,Data!$D$22:$S$71,16,0) -> 2.0 sec | F166: =VLOOKUP(F$13,Data!$D$22:$S$71,16,0) -> 2.0 sec
M171: Consider adding continous power available lookup table (i.e. 1100W)
M172: Consider making B35 power requested
M174: Consider peak power requested
M175: peak power availble

Sheet Data (hidden)
A1: Amplifiers | C1: Channels | D1: Peaks | F1: Rated power, symmetrical load | L1: Total rated power | Q1: Rated power, asymmetrical load | R1: Check 8 ohm | S1: CTA fraction | T1: Total Peak power available in W, 4 ohms | U1: highest lo-z limiter setting in Armonia/CSD
D2: Vpk | E2: Ipk | F2: 2Ω | G2: 4Ω | H2: 4Ω | I2: 8Ω | J2: 70V | K2: 100V | N2: 8Ω | O2: 70V | P2: 100V | Q2: 2Ω
B3: PowerShareX 4804D | C3: 4 | D3: 139 | E3: 45 | F3: 1500 | G3: 1200 | H3: 2600 | I3: 1300 | J3: 2100 | K3: 2200 | L3: 4800 | N3: 1200 | O3: 1200 | P3: 1200 | Q3: 1800 | R3: =N3*C3 -> 4800 | S3: 0.1 | T3: =(D3^2)/4 -> 4830 | U3: 140
B4: PowerShareX 2404D | C4: 4 | D4: 100 | E4: 45 | F4: 800 | G4: 600 | H4: 1700 | I4: 1300 | J4: 1500 | K4: 170+C+K4 | L4: 2400 | N4: 600 | O4: 600 | P4: 600 | Q4: 1600 | R4: =N4*C4 -> 2400 | S4: 0.1 | T4: =(D4^2)/4 -> 2500 | U4: 100
B5: PowerShareX 1204D | C5: 4 | D5: 70 | E5: 33 | F5: 400 | G5: 300 | H5: 1100 | I5: 1100 | J5: 1100 | K5: 1100 | L5: 1200 | N5: 300 | O5: 300 | P5: 300 | Q5: 1100 | R5: =N5*C5 -> 1200 | S5: 0.1 | T5: =(D5^2)/4 -> 1225 | U5: 80
B6: PowerShare PS604D | C6: 4 | D6: 100 | E6: ? | F6: n/a | G6: 150 | H6: 600 | I6: 600 | J6: 600 | K6: 600 | L6: 600 | N6: 150 | O6: 150 | P6: 150 | Q6: n/a | R6: =N6*C6 -> 600 | T6: =(D6^2)/4 -> 2500 | U6: 100
B7: PowerShare PS404D | C7: 4 | D7: 80 | E7: ? | F7: n/a | G7: 100 | H7: 400 | I7: 400 | J7: 400 | K7: 400 | L7: 400 | N7: 100 | O7: 100 | P7: 100 | Q7: n/a | R7: =N7*C7 -> 400 | T7: =(D7^2)/4 -> 1600 | U7: 80
A9: Hi-Z/Lo-Z | B9: Lo-Z
B10: Hi-Z
A12: Voltage standard | B12: 70V
B13: 100V
C14: 40
A15: Thresholds | B15: "Nearing" | D15: 1.0 dB
B16: "Exceeds" | D16: -2.0 dB
N17: NOT UPDATED LATELY 8/17/2023 | W17: DIP Switch Override
A18: Product family | D18: Product | E18: RMS power (datasheet) | F18: Nominal impedance | G18: Max Hi-Z tap setting | H18: Other Tap settings (lowest available black text tap is lowest available is also a 100v tap setting) | K18: Lowest tap setting (on this model, not available in 100v) | M18: Profile | N18: V Peak threshold | O18: Attack msec | P18: Release msec | Q18: V RMS threshold | R18: attac msec | S18: release msec | T18: Peak power (datasheet) | U18: Typical program material | W18: PowerShare PSX1204D | X18: PowerShare PSX2404D | Y18: PowerShare PSX4804D
U20: CF + reactive | V20: R:CTA ratio
B21: None | D21: None | E21: 1e-11 | F21: 0 | G21: 0 | T21: 1e-11 | U21: 0 | V21: 0
D22: FS2 | E22: 16 | F22: 16 | G22: 16 | H22: 8 | I22: 4 | J22: 2 | K22: 1 | M22: FR | N22: 32 | O22: 1.5 | P22: 100 | Q22: 16 | R22: 1 | S22: 2 | T22: 64 | U22: 10 | V22: 0.1995262315
B23: FreeSpace + Acoustimass | D23: FS3 Surface | E23: 100 | F23: 5 | G23: 200 | H23: 100 | I23: 50 | J23: 25 | M23: FR | N23: 56 | O23: 1.5 | P23: 100 | Q23: 28 | R23: 1 | S23: 2 | T23: 200 | U23: 10 | V23: 0.1995262315
B24: FreeSpace + Acoustimass | D24: FS3 Flush | E24: 100 | F24: 6 | G24: 200 | H24: 100 | I24: 50 | J24: 25 | M24: FR | N24: 56 | O24: 1.5 | P24: 100 | Q24: 28 | R24: 1 | S24: 2 | T24: 200 | U24: 10 | V24: 0.1995262315
B25: FreeSpace small | D25: FS4 | E25: 40 | F25: 8 | G25: 40 | H25: 20 | I25: 10 | J25: 5 | K25: 2.5 | L25: 2.5 | M25: FR | N25: 36 | O25: 1.5 | P25: 100 | Q25: 18 | R25: 1 | S25: 2 | T25: 160 | U25: 10 | V25: 0.1995262315
B26: FreeSpace outdoor | D26: FS360P SII | E26: 65 | F26: 8 | G26: 80 | H26: 40 | I26: 20 | J26: 10 | M26: FR | N26: 45.5 | O26: 1.5 | P26: 100 | Q26: 23 | R26: 1 | S26: 2 | T26: 320 | U26: 10 | V26: 0.1995262315
B27: DesignMax small | D27: DM2 | E27: 16 | F27: 16 | G27: 9 | H27: 4.5 | I27: 2.3 | J27: 1.2 | M27: FR | N27: 32 | O27: 1.5 | P27: 100 | Q27: 16 | R27: 1 | S27: 2 | T27: 64 | U27: 10 | V27: 0.1995262315
D28: DM3 | E28: 25 | F28: 8 | G28: 25 | H28: 12 | I28: 6 | J28: 3 | M28: FR | N28: 29 | O28: 1.5 | P28: 100 | Q28: 14.5 | R28: 1 | S28: 2 | T28: 100 | U28: 10 | V28: 0.1995262315
B29: DesignMax large | D29: DM5 | E29: 50 | F29: 8 | G29: 50 | H29: 25 | I29: 12 | J29: 6 | K29: 3 | M29: FR | N29: 40 | O29: 1.5 | P29: 100 | Q29: 20 | R29: 1 | S29: 2 | T29: 200 | U29: 10 | V29: 0.1995262315
D30: DM6 | E30: 100 | F30: 8 | G30: 80 | H30: 40 | I30: 20 | J30: 10 | K30: 5 | L30: 2.5 | M30: FR | N30: 56 | O30: 1.5 | P30: 100 | Q30: 28.5 | R30: 1 | S30: 2 | T30: 400 | U30: 10 | V30: 0.1995262315
D31: DM8 | E31: 125 | F31: 8 | G31: 80 | H31: 40 | I31: 20 | J31: 10 | K31: 5 | L31: 2.5 | M31: FR | N31: 63 | O31: 1.5 | P31: 100 | Q31: 32.5 | R31: 1 | S31: 2 | T31: 500 | U31: 10 | V31: 0.1995262315
D32: DML88P | E32: 140 | F32: 8 | G32: 100 | H32: 50 | I32: 25 | J32: 12 | M32: FR | N32: 56.5 | O32: 1.5 | P32: 100 | Q32: 28.5 | R32: 1 | S32: 2 | T32: 400 | U32: 10 | V32: 0.1995262315
D33: DM12SE | E33: 200 | F33: 8 | M33: FR | N33: 60 | O33: 1.5 | P33: 100 | Q33: 40 | R33: 1 | S33: 2 | T33: 800 | U33: 10 | V33: 0.1995262315
B34: DesignMax sub | D34: DM8C-Sub | E34: 150 | F34: 8 | G34: 150 | H34: 80 | I34: 40 | J34: 20 | M34: SW | N34: 69 | O34: 1.5 | P34: 100 | Q34: 34.5 | R34: 1 | S34: 2 | T34: 600 | U34: 10 | V34: 0.1995262315
D35: DM10S-Sub | E35: 250 | F35: 8 | G35: 150 | H35: 80 | I35: 40 | J35: 20 | M35: SW | N35: 88 | O35: 1.5 | P35: 100 | Q35: 45 | R35: 1 | S35: 2 | T35: 1000 | U35: 10 | V35: 0.1995262315 | W35: 70V
D36: DM10P-Sub | E36: 250 | F36: 8 | G36: 150 | H36: 80 | I36: 40 | J36: 20 | M36: SW | N36: 69 | O36: 1.5 | P36: 100 | Q36: 34.5 | R36: 1 | S36: 2 | T36: 1000 | U36: 10 | V36: 0.1995262315
B37: EdgeMax | D37: EM180 | E37: 125 | F37: 8 | G37: 80 | H37: 40 | I37: 20 | J37: 10 | K37: 5 | L37: 2.5 | M37: FR | N37: 63 | O37: 1.5 | P37: 100 | Q37: 31.5 | R37: 1 | S37: 2 | T37: 500 | U37: 10 | V37: 0.1995262315
D38: EM180-LP | E38: 32 | F38: 8 | G38: 32 | H38: 16 | I38: 8 | J38: 4 | M38: FR | N38: 32 | O38: 1 | P38: 200 | Q38: 16 | R38: 1 | S38: 2 | T38: 128 | U38: 10 | V38: 0.1995262315
D39: EM90 | E39: 125 | F39: 8 | G39: 80 | H39: 40 | I39: 20 | J39: 10 | K39: 5 | L39: 2.5 | M39: FR | N39: 63 | O39: 1.5 | P39: 100 | Q39: 31.5 | R39: 1 | S39: 2 | T39: 500 | U39: 10 | V39: 0.1995262315 | AB39: not from AK, assuming 1204D can do 80v clip on lo-z
D40: EM90-LP | E40: 32 | F40: 8 | G40: 32 | H40: 16 | I40: 8 | J40: 4 | M40: FR | N40: 32 | O40: 1 | P40: 200 | Q40: 16 | R40: 1 | S40: 2 | T40: 128 | U40: 10 | V40: 0.1995262315
B41: Modular Array column line array | D41: MA12 | E41: 300 | F41: 8 | G41: 150 | H41: 75 | I41: 38 | J41: 19 | M41: FR | N41: 98 | O41: 1.5 | P41: 100 | Q41: 49 | R41: 1 | S41: 2 | T41: 1200 | U41: 17.2 | V41: 0.03801893963 | W41: 100V | X41: 100V
D42: MA12EX | E42: 150 | F42: 8 | G42: 100 | H42: 50 | I42: 25 | M42: FR | N42: 69 | O42: 1.5 | P42: 100 | Q42: 35 | R42: 1 | S42: 2 | T42: 600 | U42: 16.8 | V42: 0.04168693835 | AB42: new Eqs added to list
B43: Modular Bass sub | D43: MB210-WR | E43: 500 | F43: 8 | M43: SW | N43: 126.5 | O43: 1.5 | P43: 100 | Q43: 63 | R43: 1 | S43: 2 | T43: 2000 | U43: 14 | V43: 0.07943282347 | W43: 100V | X43: 100V
B44: ArenaMatch Multipurpose | D44: AMM108 | E44: 150 | F44: 8 | M44: FR | N44: 71 | O44: 1.5 | P44: 100 | Q44: 34.5 | R44: 0.5 | S44: 0.5 | T44: 1200 | U44: 16.8 | V44: 0.04168693835 | W44: 70V
D45: AMM112 FR | E45: 300 | F45: 8 | M45: FR | N45: 142 | O45: 1.5 | P45: 100 | Q45: 49 | R45: 0.5 | S45: 0.5 | T45: 2800 | U45: 16.8 | V45: 0.04168693835 | W45: 100V | X45: 100V
D46: AMM112 HF | E46: 45 | F46: 8 | M46: HF | N46: 85 | O46: 1.5 | P46: 100 | Q46: 19 | R46: 0.5 | S46: 0.5 | T46: 720 | U46: 16.8 | V46: 0.04168693835 | W46: 70V | X46: Lo-Z
D47: AMM112 LF | E47: 300 | F47: 8 | M47: LF | N47: 142 | O47: 1.5 | P47: 100 | Q47: 49 | R47: 0.5 | S47: 0.5 | T47: 2800 | U47: 16.8 | V47: 0.04168693835 | W47: 100V | X47: 100V
B48: ArenaMatch Multipurpose sub | D48: AMS115 | E48: 500 | F48: 8 | M48: SW | N48: 142 | O48: 1.5 | P48: 100 | Q48: 63 | R48: 0.5 | S48: 0.5 | T48: 2800 | U48: 14 | V48: 0.07943282347 | W48: 100V | X48: 100V
B49: ArenaMatch Utility | D49: AMU105 | E49: 100 | F49: 8 | G49: 80 | H49: 40 | I49: 20 | J49: 10 | K49: 5 | M49: FR | N49: 56.5 | O49: 1.5 | P49: 100 | Q49: 28.5 | R49: 1 | S49: 2 | T49: 400 | U49: 16.8 | V49: 0.04168693835
D50: AMU108 | E50: 200 | F50: 8 | G50: 80 | H50: 40 | I50: 20 | J50: 10 | K50: 5 | M50: FR | N50: 80 | O50: 1.5 | P50: 100 | Q50: 40 | R50: 1 | S50: 2 | T50: 800 | U50: 16.8 | V50: 0.04168693835 | W50: 70V
D51: AMU206 | E51: 250 | F51: 8 | G51: 80 | H51: 40 | I51: 20 | J51: 10 | K51: 5 | M51: FR | N51: 89 | O51: 1.5 | P51: 100 | Q51: 44.5 | R51: 1 | S51: 2 | T51: 1000 | U51: 16.8 | V51: 0.04168693835 | W51: 70V
D52: AMU208 | E52: 300 | F52: 8 | G52: 80 | H52: 40 | I52: 20 | J52: 10 | K52: 5 | M52: FR | N52: 98 | O52: 1.5 | P52: 100 | Q52: 49 | R52: 1 | S52: 2 | T52: 1200 | U52: 16.8 | V52: 0.04168693835 | W52: 100V | X52: 100V
B53: Forum | D53: FC108 FR | E53: 150 | F53: 8 | M53: FR | N53: 71 | O53: 1.5 | P53: 100 | Q53: 34.5 | R53: 1 | S53: 2 | T53: 1200 | U53: 16.8 | V53: 0.04168693835 | W53: 70V
D54: FC108 HF | E54: 20 | F54: 8 | M54: HF | N54: 71 | O54: 1.5 | P54: 100 | Q54: 19 | R54: 1 | S54: 2 | T54: 320 | U54: 16.8 | V54: 0.04168693835
D55: FC108 LF | E55: 150 | F55: 8 | M55: LF | N55: 71 | O55: 1.5 | P55: 100 | Q55: 34.5 | R55: 1 | S55: 2 | T55: 1200 | U55: 16.8 | V55: 0.04168693835 | W55: 70V
D56: FC112 FR | E56: 300 | F56: 8 | M56: FR | N56: 71 | O56: 1.5 | P56: 100 | Q56: 49 | R56: 1 | S56: 2 | T56: 2400 | U56: 16.8 | V56: 0.04168693835 | W56: 100V | X56: 100V
D57: FC112 HF | E57: 45 | F57: 8 | M57: HF | N57: 71 | O57: 1.5 | P57: 100 | Q57: 49 | R57: 1 | S57: 2 | T57: 720 | U57: 16.8 | V57: 0.04168693835 | W57: 70V
D58: FC112 LF | E58: 300 | F58: 8 | M58: LF | N58: 71 | O58: 1.5 | P58: 100 | Q58: 49 | R58: 1 | S58: 2 | T58: 2400 | U58: 16.8 | V58: 0.04168693835 | W58: 100V | X58: 100V
B59: ShowTime | D59: SK12 | E59: 600 | F59: 8 | M59: FR | T59: 2400 | U59: 16.8 | V59: 0.04168693835 | W59: 100V | X59: 100V
B60: ShowMatch | D60: SMS118 | E60: 750 | F60: 4 | M60: SW | N60: 109 | O60: 1.5 | P60: 100 | Q60: 55 | R60: 1 | S60: 2 | T60: 3000 | U60: 14 | V60: 0.07943282347 | W60: 100V | X60: 100V
D61: SM5/10/20 LF | E61: 450 | F61: 8 | M61: LF | N61: 120 | O61: 1.5 | P61: 100 | Q61: 60 | R61: 1 | S61: 2 | T61: 1800 | U61: 15.4 | V61: 0.05754399373 | W61: 100V | X61: 100V
D62: SM5/10/20 HF | E62: 100 | F62: 6 | M62: HF | N62: 49 | O62: 1.5 | P62: 100 | Q62: 24.5 | R62: 1 | S62: 2 | T62: 400 | U62: 19.8 | V62: 0.02089296131
D63: SMFill_LF | E63: 450 | F63: 8 | M63: LF | N63: 120 | O63: 1.5 | P63: 100 | Q63: 60 | R63: 1 | S63: 2 | T63: 1800 | U63: 15.4 | V63: 0.05754399373 | W63: 100V | X63: 100V
D64: SMFill_HF | E64: 100 | F64: 6 | M64: HF | N64: 49 | O64: 1.5 | P64: 100 | Q64: 24.5 | R64: 1 | S64: 2 | T64: 400 | U64: 19.8 | V64: 0.02089296131
D65: SM_4Box_65_LF | E65: 450 | F65: 8 | M65: LF | N65: 120 | O65: 1.5 | P65: 100 | Q65: 60 | R65: 1 | S65: 2 | T65: 1800 | U65: 15.4 | V65: 0.05754399373 | W65: 100V | X65: 100V
B66: ArenaMatch | D66: AM10/20/40 LF | E66: 600 | F66: 8 | G66: 400 | H66: 200 | I66: 100 | M66: FR | N66: 122 | O66: 1.5 | P66: 100 | Q66: 77.5 | R66: 1 | S66: 2 | T66: 3000 | U66: 16.8 | V66: 0.04168693835 | W66: 100V | X66: 100V
B67: ArenaMatch | D67: AM10/20/40 HF | E67: 150 | F67: 8 | G67: 400 | H67: 200 | I67: 100 | M67: FR | N67: 122 | O67: 1.5 | P67: 100 | Q67: 77.5 | R67: 1 | S67: 2 | T67: 3000 | U67: 16.8 | V67: 0.04168693835 | W67: 100V
B68: ArenaMatch | D68: AM10/20/40 Passive | E68: 750 | F68: 8 | G68: 400 | H68: 200 | I68: 100 | M68: FR | N68: 122 | O68: 1.5 | P68: 100 | Q68: 77.5 | R68: 1 | S68: 2 | T68: 3000 | U68: 16.8 | V68: 0.04168693835 | W68: 100V | X68: 100V
B69: ArenaMatch | D69: AMArray_LF | E69: 600 | F69: 8 | G69: 400 | H69: 200 | I69: 100 | M69: FR | N69: 122 | O69: 1.5 | P69: 100 | Q69: 77.5 | R69: 1 | S69: 2 | T69: 3000 | U69: 16.8 | V69: 0.04168693835 | W69: 100V | X69: 100V
B70: Series V | D70: 402_SeriesV | E70: 150 | F70: 8 | M70: FR | N70: 62 | O70: 1.5 | P70: 100 | Q70: 31 | R70: 1 | S70: 2 | T70: 600 | U70: 16.8 | V70: 0.04168693835
B71: Series V | D71: 802_SeriesV | E71: 300 | F71: 8 | M71: FR | N71: 71 | O71: 1.5 | P71: 100 | Q71: 44 | R71: 1 | T71: 1200 | U71: 16.8 | V71: 0.04168693835 | W71: 70V
